Cogmind - Beta 16 --- EXPLORER MODE // 2025.12.03 @ 14:37:25 Player: K.K.Y. Result: Destroyed by I8-A8J(R) with Subdweller Machine Gun Performance ------------- Evolutions (0) 0 Regions Visited (3) 600 Robots Destroyed (24) 120 Value Destroyed (547) 547 Prototype IDs (0) 0 Alien Tech Used (0) 0 Bonus (0) 0 TOTAL SCORE: 1267 Bonus ------- None Cogmind --------- Core Integrity 0/250 Matter 234/300 Energy 125/125 System Corruption 2% Temperature Cool (0) Movement Core (250) Ox4 Location -10/Subcaves Parts ------- > --- POWER (1) -------- Light Ion Engine > --- PROPULSION (2) --- (None) > --- UTILITY (3) ------ Improved Terrain Scanner Terrain Scan Processor Terrain Scan Processor > --- WEAPON (2) ------- Bore Cannon > --- INVENTORY (5) ---- Cargo Storage Unit Terrain Scan Processor Mining Laser Plasma Cutter Peak State ------------ > --- POWER ------------ Light Ion Engine > --- PROPULSION ------- Light Treads Light Treads > --- UTILITY ---------- Improved Terrain Scanner Terrain Scan Processor Terrain Scan Processor > --- WEAPON ----------- Bore Cannon Hammer > --- INVENTORY -------- Cargo Storage Unit Terrain Scan Processor Mining Laser Plasma Cutter [Rating: 16] Favorites ----------- Power Improved Ion Engine Engine Improved Ion Engine Propulsion Light Treads Treads Light Treads Utility Terrain Scan Processor Device Improved Terrain Scanner Processor Terrain Scan Processor Weapon Beam Cannon Energy Gun Medium Laser Energy Cannon Beam Cannon Ballistic Gun Assault Rifle Ballistic Cannon Bore Cannon Special Weapon Welding Torch Impact Weapon Hammer Build | -11 -10 -10 -10 ------- Run | Yrd Mat Min Sub Slots Evolved 1 | . 1 . . Power . | . . . . Propulsion . | . . . . Utility 1 | . 1 . . Weapon . | . . . . Parts Attached 21 | 7 9 5 . Power 3 | 1 1 1 . Engine 3 | 1 1 1 . Core . | . . . . Reactor . | . . . . Propulsion 5 | 2 3 . . Treads 5 | 2 3 . . Leg . | . . . . Wheel . | . . . . Hover . | . . . . Flight . | . . . . Utility 6 | 2 2 2 . Device 2 | 1 . 1 . Storage . | . . . . Processor 4 | 1 2 1 . Hackware . | . . . . Protection . | . . . . Artifact . | . . . . Weapon 7 | 2 3 2 . Energy Gun 2 | 1 1 . . Energy Cannon 1 | . 1 . . Ballistic Gun 1 | 1 . . . Ballistic Cannon 1 | . . 1 . Launcher . | . . . . Special Weapon 1 | . . 1 . Impact Weapon 1 | . 1 . . Slashing Weapon . | . . . . Piercing Weapon . | . . . . Special Melee Weapon . | . . . . Unidentified Prototypes . | . . . . Parts Lost 5 | . . 4 1 Power 1 | . . 1 . Propulsion 2 | . . 1 1 Utility 1 | . . 1 . Weapon 1 | . . 1 . Highest Loss Streak 3 | . . 3 1 To Critical Strikes . | . . . . Average Backups 4 | 1 4 4 4 Power . | . . . . Propulsion . | . . . . Utility 2 | . 1 2 2 Weapon 1 | . 1 1 1 Tool/Special . | . . . . Unused Backups 9 | 1 2 2 4 Power . | . . . . Propulsion 1 | . 1 . . Utility 4 | . . 2 2 Weapon 3 | 1 1 . 1 Tool/Special 1 | . . . 1 Average Slot Usage (%) 95 | . 98 91 82 Engine 11 | . 12 11 12 Treads 24 | . 25 24 10 Device 10 | . 12 6 12 Processor 24 | . 23 25 25 Energy Gun 5 | . 9 . . Energy Cannon 6 | . 7 5 . Ballistic Gun 2 | . 4 . . Ballistic Cannon 1 | . . 2 12 Impact Weapon 5 | . 2 12 9 Peak Build Rating 16 | 9 13 16 15 Average Rating 11 | 5 12 11 14 On Entrance 9 | . 9 13 15 Avg Prop Armor Cover (%) 11 | . . 11 . Naked Turns . | . . . . Heaviest Build 15 | 10 13 15 15 Greatest Support 40 | 40 40 40 20 Greatest Overweight (x) 4 | . . . 4 Average Overweight (x) . | . . . . Largest Inventory Capacity 5 | 5 5 5 5 Average Capacity 5 | 5 5 5 5 Most Carried 5 | 5 5 5 5 Average Carried 4 | 1 4 4 5 Final Capacity 5 | 5 5 5 5 Final Carried 5 | 1 5 5 5 Class Distribution -------------------- 93% | Hacker-Mutant 6% | Scavenger-Mutant Dominant Class ---------------- Hacker-Mutant | -10/Materials Hacker-Mutant | -10/Mines Scavenger-Mutant | -10/Subcaves Resources | -11 -10 -10 -10 ----------- Run | Yrd Mat Min Sub Matter Collected 559 | 294 198 66 1 Remotely . | . . . . Salvage Created 1035 | 165 614 256 . Parts 56 | 13 42 1 . Haulers Intercepted 2 | . 2 . . Recyclers Shooed 1 | 1 . . . Parts Field Recycled . | . . . . Retrieved Matter . | . . . . Parts Self-Destructed . | . . . . Prevented . | . . . . Parts Restored . | . . . . Kills | -11 -10 -10 -10 ------- Run | Yrd Mat Min Sub Combat Hostiles Destroyed 27 | . 8 19 . Melee 13 | . . 13 . Guns 3 | . 3 . . Cannons 7 | . 4 3 . Classes Destroyed 9 | 2 5 2 . Worker 1 | . 1 . . Builder 4 | . 4 . . Tunneler 3 | 3 . . . Hauler 2 | . 2 . . Recycler 1 | 1 . . . Watcher 3 | . 3 . . Grunt 8 | . 8 . . Demolisher 2 | . . 2 . Assembled 17 | . . 17 . Best Kill Streak 6 | 2 3 6 . Combat Bots Only 6 | . 2 6 . Max Kills in Single Turn 1 | 1 1 1 . Gunslinging . | . . . . Exploded . | . . . . Melee 1 | . . 1 . Uniques/NPCs Destroyed . | . . . . Combat | -11 -10 -10 -10 -------- Run | Yrd Mat Min Sub Hostile Shots Fired 107 | . 40 54 13 Missed 25 | . 14 9 2 Hits 82 | . 26 45 11 Melee 7 | . . 7 . Projectile 75 | . 26 38 11 AOE 10 | . . 10 . Critical Strikes 1 | . . 1 . Part Disruptions 3 | . . 3 . Damage Taken 984 | . 225 608 151 Core 262 | . 42 182 38 Absorbed by Shields . | . . . . Ignored by Resistances 594 | . 138 367 89 Core Remaining (%) 100 | 100 . . . Volleys Fired 88 | 8 56 15 9 Largest 2 | 2 2 1 1 Hottest 110 | 70 110 60 48 Shots Fired 152 | 16 112 15 9 Gun 108 | 16 92 . . Cannon 44 | . 20 15 9 Launcher . | . . . . Special . | . . . . Kinetic 54 | 8 36 1 9 Thermal 98 | 8 76 14 . Explosive . | . . . . Electromagnetic . | . . . . Robot Hit Streak 20 | 5 20 9 6 Robot Miss Streak 2 | 1 2 1 1 Penetration Max . | . . . . Secondary Targets . | . . . . Shots Hit Robots 114 | 11 55 40 8 Core Hits 43 | 5 24 14 . Critical Kills . | . . . . Critical Parts Destroyed 6 | . . 6 . Critical Strikes 12 | . 2 6 4 Burn 2 | . 2 . . Destroy 4 | . . . 4 Smash 6 | . . 6 . Melee Attacks 37 | . . 36 1 Impact 37 | . . 36 1 Slashing . | . . . . Piercing . | . . . . Sneak Attacks . | . . . . Combat Hostiles . | . . . . Follow-up Attacks . | . . . . Damage Inflicted 2257 | 147 788 1124 198 Guns 670 | 147 523 . . Cannons 660 | . 265 213 182 Explosions . | . . . . Melee 927 | . . 911 16 Ramming . | . . . . Kinetic 381 | 96 103 . 182 Thermal 949 | 51 685 213 . Explosive . | . . . . Electromagnetic . | . . . . Impact 927 | . . 911 16 Slashing . | . . . . Piercing . | . . . . Highest Corruption 2 | . 1 2 2 Average Corruption 1 | . 1 1 2 Corruption Purged . | . . . . Corruption Blocked . | . . . . Effects 10 | . 1 8 1 Message Errors 1 | . . 1 . Matter Fused 2 | . . 2 . Heat Flow Errors 1 | . . 1 . Energy Discharges 1 | . . 1 . Parts Rejected 1 | . . . 1 Data Loss (minor) 3 | . 1 2 . Data Loss (major) 1 | . . 1 . Overload Shots . | . . . . Overflow Damage 286 | . 6 280 . Projectiles 6 | . 6 . . Explosions . | . . . . Melee 280 | . . 280 . Knockbacks 4 | . . 1 3 Impact 1 | . . 1 . Kinetic 3 | . . . 3 Secondary . | . . . . Self-Inflicted Damage . | . . . . Shots . | . . . . Rammed . | . . . . Targets Rammed . | . . . . Kicked . | . . . . Crushed . | . . . . Highest Temperature 396 | 36 396 179 . Average Temperature 68 | 14 75 63 . Received Heat Transfer 410 | . 198 212 . Siege Activations . | . . . . Martial Activations . | . . . . Shielding Activations . | . . . . Robots Disrupted . | . . . . Combat Hostiles . | . . . . Robots Corrupted 3 | . . 3 . Combat Hostiles 3 | . . 3 . Parts Fried . | . . . . Impact Corruptions 11 | . . 11 . Robots Melted 1 | . 1 . . Combat Hostiles 1 | . 1 . . Parts Melted 3 | . 3 . . Heat Transferred 2516 | 148 1924 444 . Parts Sabotaged . | . . . . Parts Stolen . | . . . . Parts Stripped . | . . . . Power Chain Reactions . | . . . . Alert | -11 -10 -10 -10 ------- Run | Yrd Mat Min Sub Maximum Alert Level . | . . . . Low Security (%) 100 | 100 100 100 . Level 1 . | . . . . Level 2 . | . . . . Level 3 . | . . . . Level 4 . | . . . . Level 5 . | . . . . High Security . | . . . . Max Security . | . . . . Peak Influence 50 | 10 50 50 . Initial . | . . . . Average 3 | . 4 2 . Influence Increases 354 | 20 281 53 . Destroy 0b10 Robot/C 200 | . 160 40 . Destroy 0b10 Robot/NC 70 | 20 50 . . Destroy Leader 50 | . 40 10 . Successful Hack 3 | . 3 . . Disable Machine 12 | . 12 . . Destroy Structure 4 | . 1 3 . Lose Combat Pursuer 15 | . 15 . . Influence Decreases 354 | 20 281 53 . Time Decay 354 | 20 281 53 . Squads Dispatched . | . . . . Investigation . | . . . . Extermination . | . . . . Reinforcement . | . . . . Assault . | . . . . Garrison . | . . . . Intercept . | . . . . Searches Triggered . | . . . . Construction Impeded . | . . . . Haulers Reinforced . | . . . . Active Scanning Responses . | . . . . Cargo Convoy Interrupts . | . . . . Stealth | -11 -10 -10 -10 --------- Run | Yrd Mat Min Sub Distress Signals . | . . . . Communications Jammed . | . . . . Distress Signals . | . . . . Times Spotted 38 | . 12 25 1 Peak Tracking Total 4 | . 2 4 1 Tactical Retreats 4 | . 1 3 . Traps | -11 -10 -10 -10 ------- Run | Yrd Mat Min Sub Traps Triggered 2 | . 2 . . Indirectly . | . . . . Trap Hack Attempts . | . . . . Triggered . | . . . . Disarmed . | . . . . Reprogrammed . | . . . . Reused . | . . . . Traps Extracted . | . . . . Installed . | . . . . Triggered . | . . . . Machines | -11 -10 -10 -10 ---------- Run | Yrd Mat Min Sub Machines Disabled 3 | . 3 . . Max in Single Turn 1 | . 1 . . Machines Repaired . | . . . . Machines Dismantled . | . . . . Machines Sabotaged . | . . . . Overloaded Fab Kills . | . . . . Hacking | -11 -10 -10 -10 --------- Run | Yrd Mat Min Sub Machines Accessed 9 | . 9 . . Terminals 8 | . 8 . . Fabricators . | . . . . Repair Stations . | . . . . Recycling Units 1 | . 1 . . Scanalyzers . | . . . . Garrison Access . | . . . . Total Hacks 15 | . 15 . . Successful 8 | . 8 . . Failed 7 | . 7 . . Catastrophic 1 | . 1 . . Database Lockouts . | . . . . Manual 9 | . 9 . . Terminals 12 | . 12 . . Fabricators . | . . . . Repair Stations . | . . . . Recycling Units 3 | . 3 . . Scanalyzers . | . . . . Garrison Access . | . . . . Terminal Hacks 1 | . 1 . . Robot Analysis 1 | . 1 . . Fabricator Hacks . | . . . . Repair Station Hacks . | . . . . Recycling Unit Hacks . | . . . . Scanalyzer . | . . . . Garrison Access Hacks . | . . . . Unauthorized Hacks 7 | . 7 . . Terminals 7 | . 7 . . Botnet 7 | . 7 . . Fabricators . | . . . . Repair Stations . | . . . . Recycling Units . | . . . . Scanalyzers . | . . . . Garrison Access . | . . . . Data Cores Recovered . | . . . . Used . | . . . . Hacking Detections 7 | . 7 . . Full Trace Events 2 | . 2 . . Feedback Events . | . . . . Feedback Blocked . | . . . . Robot Schematics Acquired . | . . . . Robots Built . | . . . . Authchips . | . . . . Time . | . . . . Total Robot Build Rating . | . . . . Part Schematics Acquired . | . . . . Parts Built . | . . . . Authchips . | . . . . Time . | . . . . Total Part Build Rating . | . . . . Part Studies Acquired . | . . . . Parts Repaired . | . . . . Time . | . . . . Parts Recycled . | . . . . Recycled Matter . | . . . . Retrieved Matter . | . . . . Retrieved Components . | . . . . Parts Scanalyzed . | . . . . Part Schematics Acquired . | . . . . Parts Damaged . | . . . . Bothacking | -11 -10 -10 -10 ------------ Run | Yrd Mat Min Sub Used RIF Installer . | . . . . Robots Hacked . | . . . . Non-combat . | . . . . Combat . | . . . . Robot Hacks Applied . | . . . . Relay Couplers Released . | . . . . Fabnet Peak Effective % . | . . . . Robots Rewired . | . . . . Allies Hacked . | . . . . Hacks Repelled . | . . . . Allies | -11 -10 -10 -10 -------- Run | Yrd Mat Min Sub Total Allies . | . . . . Largest Group . | . . . . Highest-Rated Group . | . . . . Highest-Rated Ally . | . . . . Total Orders . | . . . . Ally Attacks . | . . . . Total Damage . | . . . . Kills . | . . . . Allies Corrupted . | . . . . Allies Melted . | . . . . Intel | -11 -10 -10 -10 ------- Run | Yrd Mat Min Sub Active Infowar (turns) 2068 | 32 1475 491 70 Terrain 2068 | 32 1475 491 70 Robot Analysis Total 1 | . 1 . . Derelict Logs Recovered 1 | . . 1 . Drone Launches . | . . . . Drone Recoveries . | . . . . Exploration | -11 -10 -10 -10 ------------- Run | Yrd Mat Min Sub Turns Passed 2555 | 156 1475 854 70 Spaces Moved 1294 | 93 793 380 28 Core 31 | 29 . . 2 Treads 1263 | 64 793 380 26 Legs . | . . . . Wheels . | . . . . Hover . | . . . . Flight . | . . . . Fastest Speed 50 | 50 160 160 160 Average Speed 157 | 125 160 160 166 Slowest Speed 250 | 160 160 160 250 Overloaded Moves . | . . . . Propulsion Burnouts . | . . . . Robots Hopped . | . . . . Potential Cave-ins . | . . . . Cave-ins Triggered . | . . . . Exploration Rate (%) 40 | 4 99 54 3 Regions Visited 3 Branch Regions 2 Pre-discovered Areas . | . . . . Known Exits Taken 3 | 1 1 1 . Unknown Exits Taken . | . . . . Scrap Searched 2 | . . 2 . Spaces Dug 3 | . . 3 . Terrain Destroyed 8 | . . 3 5 Melee 3 | . . 3 . Projectile 5 | . . . 5 AOE . | . . . . Terrain Rammed . | . . . . Walls Destroyed . | . . . . Machines Disabled . | . . . . Actions | -11 -10 -10 -10 --------- Run | Yrd Mat Min Sub Total 1598 | 116 893 548 41 Wait 128 | . 17 108 3 Move 1291 | 92 792 379 28 Hop . | . . . . Pick Up 18 | 8 9 1 . Fast Attach 7 | 1 1 5 . Attach 8 | 6 2 . . Detach 1 | . 1 . . Swap 6 | . 6 . . Drop 14 | 1 9 4 . Fire 88 | 8 56 15 9 Melee 37 | . . 36 1 Ram . | . . . . Kick . | . . . . Crush . | . . . . Escape Stasis . | . . . . Rewire . | . . . . Trap . | . . . . Miscellaneous . | . . . . Route ------- -11/Scrapyard -10/Materials (discovered 6 exits: *Mat x3 / *Min x2 / *Sub) -10/Mines (discovered 3 exits: *Mat x2 / *Sub) -10/Subcaves History --------- Turn | Location | Event 3 | -11/Scrapyard | Identified exit to Materials 3 | -11/Scrapyard | Discovered exit to Materials (range 16) 157 | -11/Scrapyard | Entered Materials 157 | -10/Materials | Evolved 1 slot: Utility x1 280 | -10/Materials | Identified exit to Subcaves 280 | -10/Materials | Discovered exit to Subcaves (range 7) 300 | -10/Materials | Build established: Hacker-Mutant 418 | -10/Materials | Identified exit to Mines 418 | -10/Materials | Discovered exit to Mines (range 16) 628 | -10/Materials | Identified exit to Materials 628 | -10/Materials | Discovered exit to Materials (range 5) 818 | -10/Materials | Discovered exit to Materials (range 13) 867 | -10/Materials | Discovered exit to Mines (range 14) 1361 | -10/Materials | Discovered exit to Materials (range 16) 1632 | -10/Materials | Entered Mines 1718 | -10/Mines | Discovered exit to Materials (range 16) 1737 | -10/Mines | Assembled infested the area 1742 | -10/Mines | Assisted by a Guerilla fighting off Assembled 1790 | -10/Mines | Discovered exit to Materials (range 8) 1811 | -10/Mines | Discovered exit to Subcaves (range 9) 1817 | -10/Mines | Learned Materials terminal intel 1962 | -10/Mines | A weapon hastily lodged in a ceiling crevice suddenly fell to the ground 2099 | -10/Mines | Lost 3 parts (1p1u1w) 2109 | -10/Mines | Core integrity fell below 50% 2238 | -10/Mines | Core integrity fell below 20% 2486 | -10/Mines | Entered Subcaves 2487 | -10/Subcaves | Approached by a straggling Scientist 2497 | -10/Subcaves | A swath of the cavern ceiling suddenly collapsed 2556 | -10/Subcaves | Destroyed by I8-A8J(R) with Subdweller Machine Gun Last Messages --------------- 02531_ HV Slug penetrates I8-A8J(R). 02532_ I8-A8J(R) suffers critical hit (Destroy). 02532_ I8-A8J(R) knocked back. 02532_ HV Slug penetrates I8-A8J(R). 02536_ I8-A8J(R) knocked back. EM-153(c): "I think it's somewhere east of here" 02538_ HV Slug penetrates I8-A8J(R). 02540_ Subatomizers dissect the Hammer. 02540_ HV Slug penetrates I8-A8J(R). 02542_ I8-A8J(R) suffers critical hit (Destroy). 02542_ HV Slug penetrates Wall. 02542_ Lgt. Treads destroyed. 02544_ HV Slug penetrates I8-A8J(R). 02544_ HV Slug penetrates Wall. 02546_ I8-A8J(R) suffers critical hit (Destroy). 02546_ I8-A8J(R) knocked back. 02550_ Acquired 1 matter. 02551_ HV Slug penetrates Wall. 02555_ I8-A8J(R) suffers critical hit (Destroy). 02555_ Destroyed Scrap Shield. Map ----- +----------------------------------------------------+ | ?????????????????????????????????????? | | ?????????????????????????????????????? | | ?????????????????????????????????????? | | ?????????????????????????????????????? | | ?????????????????????????????????????? | | ?????????????????????????????????????? | | ?????????????????????????????????????? | | ?????????????????????????????????????? | | ?????????????????????????????????????? | | ???????????????#?????????????????????? | | ????????????? ? ?????????????????????? | | ????????#??#???? ? #? ???????????????? | | ??????#?#??#??" ? ?##????????????????? | | ?????#?#?#??#? ?? ?#?#? #???????????? | | ????#?###??#? ????## #???????????? | | ???#?#?#?????#???#?#?? ##?##????????? | | ???#??????#?##?###### #????#??#????? | | ???#?#???#??#?###??## #?#????????? | | ##?#?????#??#????#?# ?? ##?#??##### | | ??#?#????????###?## ?? ?#??#?????# | | ##??##??##?#?##### ##??#?????? | | ??#?##??# ###?### ? ?? ?#?#?#??##?? | | ???#?##??#;#?#?# #?# ? ?????#?##?? | | #????#?#### $### % ##??? ?##????#?#?? | | ?##?#?### ; #h#